Cogmind - Beta 14 @@@ ROGUE MODE // 2024.10.26 @ 21:17:42 Player: TheRandomBlokkieZ Result: Destroyed by G-47 Trooper with Particle Gun Performance ------------- Evolutions (2) 1000 Regions Visited (4) 800 Robots Destroyed (24) 120 Value Destroyed (791) 791 Prototype IDs (1) 20 Alien Tech Used (0) 0 Bonus (0) 0 TOTAL SCORE: 2731 Bonus ------- None Cogmind --------- Core Integrity 0/550 Matter 129/300 Energy 73/100 System Corruption 8% Temperature Warm (155) Movement Core (100) Ox1 Location -8/Materials Parts ------- > --- POWER (1) -------- (None) > --- PROPULSION (4) --- (None) > --- UTILITY (4) ------ (None) > --- WEAPON (2) ------- Flak Cannon > --- INVENTORY (5) ---- VTOL Module VTOL Module VTOL Module VTOL Module Weapon Shielding Peak State ------------ > --- POWER ------------ Ion Engine > --- PROPULSION ------- Light Treads Light Treads > --- UTILITY ---------- Small Storage Unit Structural Scanner Seismic Detector Light Armor Plating > --- WEAPON ----------- Light Assault Rifle Advanced EMP Blaster > --- INVENTORY -------- Ion Engine VTOL Module VTOL Module VTOL Module VTOL Module VTOL Module Weapon Shielding Hacking Suite [Rating: 13] Favorites ----------- Power Ion Engine Engine Ion Engine Propulsion Light Treads Treads Light Treads Utility Small Storage Unit Device Seismic Detector Storage Small Storage Unit Protection Light Armor Plating Weapon Light Assault Rifle Energy Gun Particle Gun Energy Cannon EM Pulse Cannon Ballistic Gun Light Assault Rifle Ballistic Cannon Flak Cannon Launcher Advanced EMP Blaster Build | -11 -10 -9 -9 -8 ------- Run | Yrd Mat Mat Min Mat Slots Evolved 4 | . . 2 . 2 Power . | . . . . . Propulsion 2 | . . . . 2 Utility 2 | . . 2 . . Weapon . | . . . . . Parts Attached 19 | 6 1 2 1 9 Power 2 | 1 . . . 1 Engine 2 | 1 . . . 1 Core . | . . . . . Reactor . | . . . . . Propulsion 2 | 2 . . . . Treads 2 | 2 . . . . Leg . | . . . . . Wheel . | . . . . . Hover . | . . . . . Flight . | . . . . . Utility 4 | 1 1 2 . . Device 2 | . 1 1 . . Storage 1 | 1 . . . . Processor . | . . . . . Hackware . | . . . . . Protection 1 | . . 1 . . Artifact . | . . . . . Weapon 11 | 2 . . 1 8 Energy Gun 2 | . . . . 2 Energy Cannon 1 | . . . . 1 Ballistic Gun 3 | 2 . . 1 . Ballistic Cannon 4 | . . . . 4 Launcher 1 | . . . . 1 Special Weapon . | . . . . . Impact Weapon . | . . . . . Slashing Weapon . | . . . . . Piercing Weapon . | . . . . . Special Melee Weapon . | . . . . . Unidentified Prototypes 1 | . . . . 1 Parts Lost 14 | . . . . 14 Power 2 | . . . . 2 Propulsion 2 | . . . . 2 Utility 4 | . . . . 4 Weapon 6 | . . . . 6 Highest Loss Streak 6 | . . . . 6 To Critical Strikes . | . . . . . Average Slot Usage (%) 87 | . 99 98 100 61 Engine 10 | . 14 11 11 7 Treads 20 | . 28 22 22 11 Device 16 | . 13 21 22 14 Storage 11 | . 14 11 11 7 Protection 5 | . . 10 11 5 Energy Cannon 1 | . . . . 4 Ballistic Gun 19 | . 28 22 22 8 Peak Build Rating 13 | 6 8 10 10 13 Average Rating 8 | 4 7 9 10 9 On Entrance 6 | . 6 8 10 10 Naked Turns 4 | . . . . 4 Heaviest Build 22 | 13 14 18 18 22 Greatest Support 40 | 40 40 40 40 40 Greatest Overweight (x) 4 | . . . . 4 Average Overweight (x) . | . . . . . Largest Inventory Capacity 8 | 8 8 8 8 8 Average Capacity 7 | 6 8 8 8 7 Most Carried 8 | 5 8 8 8 8 Average Carried 5 | 1 3 6 7 7 Final Capacity 8 | 8 8 8 8 5 Final Carried 8 | 1 8 7 7 5 Class Distribution -------------------- 100% | Mutant Dominant Class ---------------- Mutant | -10/Materials Mutant | -9/Materials Mutant | -9/Mines Mutant | -8/Materials Resources | -11 -10 -9 -9 -8 ----------- Run | Yrd Mat Mat Min Mat Matter Collected 540 | 209 84 153 54 40 Remotely . | . . . . . Salvage Created 821 | . 95 322 54 350 Parts 49 | . 7 19 8 15 Haulers Intercepted . | . . . . . Recyclers Shooed 1 | . . . . 1 Parts Field Recycled . | . . . . . Retrieved Matter . | . . . . . Parts Self-Destructed . | . . . . . Prevented . | . . . . . Kills | -11 -10 -9 -9 -8 ------- Run | Yrd Mat Mat Min Mat Combat Hostiles Destroyed 21 | . 2 7 4 8 Guns 17 | . 2 7 4 4 Cannons 2 | . . . . 2 Classes Destroyed 6 | . 2 2 1 1 Operator 1 | . . 1 . . Watcher 2 | . 2 . . . Swarmer 4 | . . . 4 . Grunt 14 | . 2 6 . 6 Brawler 1 | . . . . 1 Sentry 2 | . . 1 . 1 Best Kill Streak 4 | . 3 4 4 3 Combat Bots Only 4 | . 1 4 4 3 Max Kills in Single Turn 1 | . 1 1 1 1 Gunslinging . | . . . . . Exploded . | . . . . . Melee . | . . . . . Uniques/NPCs Destroyed . | . . . . . Combat | -11 -10 -9 -9 -8 -------- Run | Yrd Mat Mat Min Mat Hostile Shots Fired 194 | . 13 26 13 142 Missed 53 | . 3 9 4 37 Damage Taken 2091 | . 109 216 72 1694 Core 596 | . 31 . 8 557 Absorbed by Shields . | . . . . . Core Remaining (%) 95 | 100 87 . 98 . Volleys Fired 121 | . 18 34 5 64 Largest 2 | . 2 2 2 2 Hottest 130 | . 40 40 40 130 Shots Fired 199 | . 36 68 10 85 Gun 170 | . 36 68 10 56 Cannon 29 | . . . . 29 Launcher . | . . . . . Special . | . . . . . Kinetic 182 | . 36 68 10 68 Thermal 7 | . . . . 7 Explosive . | . . . . . Electromagnetic 10 | . . . . 10 Robot Hit Streak 8 | . 5 8 3 7 Robot Miss Streak 11 | . 2 5 3 11 Penetration Max . | . . . . . Secondary Targets 2 | . . . 2 . Max Gunslinging Chain 1 | . . . 1 . Shots Hit Robots 120 | . 23 36 4 57 Core Hits 69 | . 8 20 5 36 Critical Kills . | . . . . . Critical Parts Destroyed . | . . . . . Critical Strikes 1 | . . . . 1 Burn 1 | . . . . 1 Melee Attacks . | . . . . . Impact . | . . . . . Slashing . | . . . . . Piercing . | . . . . . Sneak Attacks . | . . . . . Combat Hostiles . | . . . . . Follow-up Attacks . | . . . . . Damage Inflicted 1691 | . 234 436 62 959 Guns 1079 | . 234 436 62 347 Cannons 612 | . . . . 612 Explosions . | . . . . . Melee . | . . . . . Ramming . | . . . . . Kinetic 1343 | . 234 436 62 611 Thermal 103 | . . . . 103 Explosive . | . . . . . Electromagnetic 245 | . . . . 245 Impact . | . . . . . Slashing . | . . . . . Piercing . | . . . . . Highest Corruption 8 | . 3 . . 8 Average Corruption 6 | . 2 . . 7 Corruption Purged . | . . . . . Corruption Blocked . | . . . . . Effects 2 | . . . . 2 Energy Discharges 1 | . . . . 1 Parts Rejected 1 | . . . . 1 Overload Shots . | . . . . . Overflow Damage 16 | . . . . 16 Projectiles 16 | . . . . 16 Explosions . | . . . . . Melee . | . . . . . Knockbacks 5 | . . . . 5 Impact . | . . . . . Kinetic 5 | . . . . 5 Secondary . | . . . . . Self-Inflicted Damage . | . . . . . Shots . | . . . . . Rammed . | . . . . . Targets Rammed . | . . . . . Kicked . | . . . . . Crushed . | . . . . . Highest Temperature 420 | . 6 12 . 420 Average Temperature 113 | . 6 7 . 135 Received Heat Transfer 1152 | . 60 102 . 990 Effects 1 | . . . . 1 Energy Bleed 1 | . . . . 1 Siege Activations . | . . . . . Robots Corrupted 1 | . . . . 1 Combat Hostiles 1 | . . . . 1 Parts Fried 2 | . . . . 2 Impact Corruptions . | . . . . . Robots Melted 1 | . . . . 1 Combat Hostiles 1 | . . . . 1 Parts Melted . | . . . . . Heat Transferred 296 | . . . . 296 Parts Sabotaged . | . . . . . Parts Stolen . | . . . . . Parts Stripped . | . . . . . Power Chain Reactions . | . . . . . Alert | -11 -10 -9 -9 -8 ------- Run | Yrd Mat Mat Min Mat Peak Influence 247 | . 111 247 186 207 Initial 96 | . . 46 96 72 Average 99 | . 34 135 183 113 Maximum Alert Level 1 | . . 1 . 1 Low Security (%) 94 | 100 100 69 100 99 Level 1 5 | . . 30 . . Level 2 . | . . . . . Level 3 . | . . . . . Level 4 . | . . . . . Level 5 . | . . . . . High Security . | . . . . . Max Security . | . . . . . Squads Dispatched 6 | . 2 2 . 2 Investigation . | . . . . . Extermination . | . . . . . Reinforcement 4 | . 2 2 . . Assault . | . . . . . Garrison 2 | . . . . 2 Intercept . | . . . . . Searches Triggered . | . . . . . Construction Impeded . | . . . . . Haulers Reinforced . | . . . . . Active Scanning Responses . | . . . . . Cargo Convoy Interrupts . | . . . . . Stealth | -11 -10 -9 -9 -8 --------- Run | Yrd Mat Mat Min Mat Distress Signals 2 | . 1 . . 1 Communications Jammed . | . . . . . Distress Signals . | . . . . . Times Spotted 35 | . 5 12 3 15 Peak Tracking Total 7 | . 2 2 2 7 Tactical Retreats 1 | . . . . 1 Traps | -11 -10 -9 -9 -8 ------- Run | Yrd Mat Mat Min Mat Traps Triggered 2 | . 2 . . . Indirectly . | . . . . . Trap Hack Attempts . | . . . . . Triggered . | . . . . . Disarmed . | . . . . . Reprogrammed . | . . . . . Reused . | . . . . . Traps Extracted . | . . . . . Installed . | . . . . . Triggered 1 | . . . . 1 Machines | -11 -10 -9 -9 -8 ---------- Run | Yrd Mat Mat Min Mat Machines Disabled 1 | . . . . 1 Max in Single Turn 1 | . . . . 1 Machines Repaired . | . . . . . Machines Dismantled . | . . . . . Machines Sabotaged . | . . . . . Overloaded Fab Kills . | . . . . . Hacking | -11 -10 -9 -9 -8 --------- Run | Yrd Mat Mat Min Mat Machines Accessed 3 | . 2 . . 1 Terminals 2 | . 2 . . . Fabricators . | . . . . . Repair Stations . | . . . . . Recycling Units . | . . . . . Scanalyzers 1 | . . . . 1 Garrison Access . | . . . . . Total Hacks 10 | . 8 . . 2 Successful 4 | . 2 . . 2 Failed 6 | . 6 . . . Catastrophic . | . . . . . Database Lockouts . | . . . . . Manual 8 | . 8 . . . Terminals 8 | . 8 . . . Fabricators . | . . . . . Repair Stations . | . . . . . Recycling Units . | . . . . . Scanalyzers 2 | . . . . 2 Garrison Access . | . . . . . Terminal Hacks 2 | . 2 . . . Unreport Threat 1 | . 1 . . . Disarm Traps 1 | . 1 . . . Fabricator Hacks . | . . . . . Repair Station Hacks . | . . . . . Recycling Unit Hacks . | . . . . . Scanalyzer 2 | . . . . 2 Insert Component 1 | . . . . 1 Analyze 1 | . . . . 1 Garrison Access Hacks . | . . . . . Unauthorized Hacks . | . . . . . Terminals . | . . . . . Fabricators . | . . . . . Repair Stations . | . . . . . Recycling Units . | . . . . . Scanalyzers . | . . . . . Garrison Access . | . . . . . Data Cores Recovered . | . . . . . Used . | . . . . . Hacking Detections 1 | . 1 . . . Full Trace Events . | . . . . . Feedback Events . | . . . . . Feedback Blocked . | . . . . . Robot Schematics Acquired . | . . . . . Robots Built . | . . . . . Authchips . | . . . . . Time . | . . . . . Total Robot Build Rating . | . . . . . Part Schematics Acquired 1 | . . . . 1 Parts Built . | . . . . . Authchips . | . . . . . Time . | . . . . . Total Part Build Rating . | . . . . . Parts Repaired . | . . . . . Time . | . . . . . Parts Recycled . | . . . . . Recycled Matter . | . . . . . Retrieved Matter . | . . . . . Retrieved Components . | . . . . . Parts Scanalyzed 1 | . . . . 1 Part Schematics Acquired 1 | . . . . 1 Parts Damaged . | . . . . . Bothacking | -11 -10 -9 -9 -8 ------------ Run | Yrd Mat Mat Min Mat Used RIF Installer . | . . . . . Robots Hacked . | . . . . . Non-combat . | . . . . . Combat . | . . . . . Robot Hacks Applied . | . . . . . Relay Couplers Released . | . . . . . Fabnet Peak Effective % . | . . . . . Robots Rewired . | . . . . . Allies Hacked . | . . . . . Hacks Repelled . | . . . . . Allies | -11 -10 -9 -9 -8 -------- Run | Yrd Mat Mat Min Mat Total Allies . | . . . . . Largest Group . | . . . . . Highest-Rated Group . | . . . . . Highest-Rated Ally . | . . . . . Total Orders . | . . . . . Ally Attacks . | . . . . . Total Damage . | . . . . . Kills . | . . . . . Allies Corrupted . | . . . . . Allies Melted . | . . . . . Intel | -11 -10 -9 -9 -8 ------- Run | Yrd Mat Mat Min Mat Robot Analysis Total . | . . . . . Derelict Logs Recovered . | . . . . . Drone Launches . | . . . . . Drone Recoveries . | . . . . . Exploration | -11 -10 -9 -9 -8 ------------- Run | Yrd Mat Mat Min Mat Turns Passed 1137 | 57 347 206 198 329 Spaces Moved 501 | 37 178 68 114 104 Core 33 | 15 . . . 18 Treads 468 | 22 178 68 114 86 Legs . | . . . . . Wheels . | . . . . . Hover . | . . . . . Flight . | . . . . . Fastest Speed 50 | 50 160 160 160 50 Average Speed 155 | 115 160 160 160 155 Slowest Speed 250 | 160 160 160 160 250 Overloaded Moves . | . . . . . Propulsion Burnouts . | . . . . . Robots Hopped . | . . . . . Cave-ins Triggered . | . . . . . Exploration Rate (%) 22 | 5 38 8 44 16 Regions Visited 4 Branch Regions 1 Pre-discovered Areas . | . . . . . Known Exits Taken . | . . . . . Unknown Exits Taken 4 | 1 1 1 1 . Scrap Searched . | . . . . . Spaces Dug . | . . . . . Terrain Destroyed . | . . . . . Melee . | . . . . . Projectile . | . . . . . AOE . | . . . . . Terrain Rammed . | . . . . . Walls Destroyed . | . . . . . Machines Disabled . | . . . . . Actions | -11 -10 -9 -9 -8 --------- Run | Yrd Mat Mat Min Mat Total 678 | 51 208 104 121 194 Wait 19 | 2 4 . . 13 Move 497 | 36 177 67 113 104 Hop . | . . . . . Pick Up 19 | 7 8 1 1 2 Fast Attach 7 | . . . . 7 Attach 11 | 6 1 2 . 2 Detach . | . . . . . Swap 1 | . . . 1 . Drop 3 | . . . 1 2 Fire 121 | . 18 34 5 64 Melee . | . . . . . Ram . | . . . . . Kick . | . . . . . Crush . | . . . . . Escape Stasis . | . . . . . Rewire . | . . . . . Trap . | . . . . . Miscellaneous . | . . . . . Route ------- -11/Scrapyard -10/Materials (discovered 2 exits: [*Mat] / [*Min]) -9/Materials -9/Mines -8/Materials History --------- Turn | Location | Event 11 | -11/Scrapyard | Discovered new exit (range 15) 58 | -11/Scrapyard | Entered Materials 304 | -10/Materials | Build established: Mutant 307 | -10/Materials | Discovered new exit (range 12) 340 | -10/Materials | Discovered new exit (range 13) 405 | -10/Materials | Entered another Materials area 405 | -9/Materials | Evolved 2 slots: Utility x2 563 | -9/Materials | Discovered new exit (range 8) 611 | -9/Materials | Entered Mines 663 | -9/Mines | Met a Derelict bent on vengeance 785 | -9/Mines | Discovered new exit (range 16) 809 | -9/Mines | Entered Materials 809 | -8/Materials | Evolved 2 slots: Propulsion x2 969 | -8/Materials | Garrison activated, responded to threat 1073 | -8/Materials | Lost 6 parts (1p2n2u1w) 1085 | -8/Materials | Core integrity fell below 50% 1109 | -8/Materials | Garrison activated, responded to threat 1120 | -8/Materials | Core integrity fell below 20% 1130 | -8/Materials | Lost 6 parts (1p2u3w) 1138 | -8/Materials | Destroyed by G-47 Trooper with Particle Gun Last Messages --------------- B-36 Bruiser calls for garrison reinforcements. ALERT: Activating Garrison Access M001. B-36 Bruiser heat spikes uncontrollably. B-36 Bruiser overheating. B-36 Bruiser heat short circuits Lgt. Treads. B-36 Bruiser critical meltdown. [Achievement: It's Just You] G-47 Trooper knocked back. Critical hit (Burn: +37). G-47 Trooper destroyed. R-06 Scavenger collects Hacking Suite. Y-45 Defender destroyed. Flak Cannon destroyed. R-06 Scavenger collects VTOL Module. Critical hit (Burn: +37). Flak Cannon destroyed. R-06 Scavenger collects Aluminum Leg. Acquired Flak Cannon. System corrupted: Flak Cannon rejected. Acquired Flak Cannon. Map ----- +----------------------------------------------------+ | ?????????????????????????????????????????????????? | | ?????????????????????????????????????????????????? | | ?????????????????????????????????????????????????? | | ?????????????????????????????????????????????????? | | ?????????????????????????????????????????????????? | | ?????????????????????????????????????????????????? | | ?????????????????????????????????????????????????? | | ?????????????????????????????????????????????????? | | ?????????????????????????????????????????????????? | | ?????????????????????????????????????????????????? | | ????????????????????????? ?????????????????????? | | ????????????????????????? #????????????????????? | | ????????????????????????? #????????????????????? | | ????????????????????????? #????????????????????? | | ????????????????????????? #????????????????????? | | ????????????????????????? +????????????????????? | | ?????????????????????????k #????????????????????? | | ????????????????????##### ##???????????????????? | | ????????????############# ####?????????????????? | | ???????????? = ######??????????????? | | ????????????? ???????????????? | | ?????????????? ^ ????????????????? | | ???????????? ?? !w= w??????????????????? | | ??????????? """ #???????????????????? | | ????????????? """ ##???????????????????? | | ??????????????# """ !=@ ##???????????????????? | | ??????????????# !=] ##???????????????????? | | ??????????????# ! ! u##???????????????????? | | ??????????????# % % # ???????????????????? | | ??????????????# Y != # ???????????????????? | | ??????????????#+######## * %# ???????????????????? | | ?????????????????????? #[ * # ???????????????????? | | ?????????????????????? # gr # ???????????????????? | | ?????????????????????? # % # ???????????????????? | | ?????????????????????? # + ????? ##??????????? | | ?????????????????????? # # /?? ##??????????? | | ?????????????????????? #r # ###########?? | | ??????????????????????## ######+#############?? | | ??????????????????????## #### "" ##?? | | ??????????????????????## + ""S ##?? | | ??????????????????????## #### "" ##?? | | ??????????????????????##! % #### ##?? | | ??????????????????????## %% #### ##?? | | ??????????????????????## "%" """ #### #### | | ??????????????????????## """ """ #######+###### | | ?????????????????????? """ """ | | ???????????????????? | | ??????????????????? | | ????????????????? #####+########+###### | | ??????????????? ## # ### | +----------------------------------------------------+ Best States ------------- Heat Dissipation 31 Energy Generation 10 Energy Capacity 250 Matter Stores 284 Matter Capacity 300 Sight Range 16 Terrain Scan Density 10 Armor Coverage 150 Evasion (%) 50 Recoil Reduction 2 Item Schematics ----------------- VTOL Module | -8/Materials | Scanalyzed Robot Schematics ------------------ None Fabricated ------------ Nothing Alien Tech Used ----------------- None Achievements -------------- It's Just You More Dakka Please Troublemaker Challenges ------------ None Game ------ Seed SpreadHypercooledBeam Manual? 0 Play Time 00:13:33 Cumulative 2.9 hours Start 2024.10.26 @ 21:07:43 End 2024.10.26 @ 21:17:42 Sessions 1 Manual Loads 0 Difficulty Rogue Special Mode None Game No. 10 Rogue 10 Adventurer 0 Explorer 0 Win Type - Total 0 Types 0/0/0/0/0/0/0/0/0 Lore% 7 Gallery% 12 Achievement% 14 Wizard Run 0 Options --------- Layout 1 ASCII 0 Keyboard 0 Movement Mouse Keybinds 0 Fullscreen 1 Font 24/Smallcaps Map View 50x35 Zoom Use 0% Tactical HUD 0 Map Filters NONE Filters NONE Steam 1 RUN: 26696972-9730-4a3a-8277-02e4b5286741